[Event "16th EWICC 2015"]
[Site "Kutaisi"]
[Date "2015.06.01"]
[Round "4"]
[White "Gvetadze, Sofio"]
[Black "Batsiashvili, Nino"]
[Result "1-0"]
[ECO "A00"]
[WhiteElo "2319"]
[BlackElo "2473"]
[Annotator "Robot 11"]
[PlyCount "115"]
[EventDate "2015.??.??"]
[EventCountry "GEO"]
[TimeControl "900+10"]

1. g3 {[%emt 0:00:02]} f5 {[%emt 0:00:02]} 2. Bg2 {[%emt 0:00:02]} Nf6 {[%emt
0:00:01]} 3. Nf3 {[%emt 0:00:04]} g6 {[%emt 0:00:00]} 4. O-O {[%emt 0:00:03]}
Bg7 {[%emt 0:00:01]} 5. c4 {[%emt 0:00:06]} d6 {[%emt 0:00:03]} 6. Nc3 {[%emt
0:00:04]} O-O {[%emt 0:00:01]} 7. d3 {[%emt 0:00:15]} e5 {[%emt 0:00:02]} 8.
Bd2 {[%emt 0:00:15]} c6 {[%emt 0:00:02]} 9. Rc1 {[%emt 0:00:37]} Qe7 {[%emt 0:
00:11]} 10. b4 {[%emt 0:00:27]} Nbd7 {[%emt 0:00:11]} 11. Ne1 {[%emt 0:01:12]}
h6 {[%emt 0:00:32]} 12. b5 {[%emt 0:00:09]} c5 {[%emt 0:00:08]} 13. Nc2 {[%emt
0:00:25]} Nb6 {[%emt 0:00:43]} 14. a4 {[%emt 0:00:27]} a5 {[%emt 0:00:09]} 15.
bxa6 {[%emt 0:01:50]} Rxa6 {[%emt 0:00:01]} 16. a5 {[%emt 0:00:12]} Na8 {[%emt
0:00:09]} 17. Rb1 {[%emt 0:00:17]} Nc7 {[%emt 0:01:39]} 18. Bxb7 {[%emt 0:00:
33]} Bxb7 {[%emt 0:00:36]} 19. Rxb7 {[%emt 0:00:02]} Qd8 {[%emt 0:00:16]} 20.
Qc1 {[%emt 0:01:22]} f4 {[%emt 0:00:29]} 21. Nb5 {[%emt 0:00:59]} Ne6 {[%emt 0:
00:14]} 22. Ne1 {[%emt 0:00:33]} d5 {[%emt 0:00:21]} 23. cxd5 {[%emt 0:00:54]}
Nxd5 {[%emt 0:00:29]} 24. Qc4 {[%emt 0:00:27]} Kh8 {[%emt 0:01:51]} 25. Nf3 {
[%emt 0:00:13]} g5 {[%emt 0:00:46]} 26. Qe4 {[%emt 0:00:49]} Nd4 {[%emt 0:01:
48]} 27. Nxe5 {[%emt 0:00:44]} Qe8 {[%emt 0:03:57]} 28. Nf7+ {[%emt 0:01:09]}
Kg8 {[%emt 0:00:28]} 29. Nxh6+ {[%emt 0:01:36]} Rxh6 {[%emt 0:00:14]} 30. Qxd5+
{[%emt 0:00:02]} Kh8 {[%emt 0:00:20]} 31. Nxd4 {[%emt 0:00:07]} Bxd4 {[%emt 0:
00:13]} 32. Qxg5 {[%emt 0:00:20]} Rh5 {[%emt 0:00:54]} 33. Qe7 {[%emt 0:00:50]}
fxg3 {[%emt 0:02:30]} 34. hxg3 {[%emt 0:00:09]} Qa8 {[%emt 0:00:07]} 35. Be3 {
[%emt 0:01:05]} Bf6 {[%emt 0:00:05]} 36. Qe4 {[%emt 0:00:01]} Qc8 {[%emt 0:00:
26]} 37. Qg2 {[%emt 0:00:48]} Qe6 {[%emt 0:00:36]} 38. Rfb1 {[%emt 0:00:12]}
Be5 {[%emt 0:00:05]} 39. Bxc5 {[%emt 0:01:03]} Rg8 {[%emt 0:00:34]} 40. R7b4 {
[%emt 0:00:20]} Qc8 {[%emt 0:00:14]} 41. Bd4 {[%emt 0:00:09]} Bxd4 {[%emt 0:00:
04]} 42. Rxd4 {[%emt 0:00:02]} Qc2 {[%emt 0:00:02]} 43. Rf1 {[%emt 0:00:26]}
Qxe2 {[%emt 0:00:06]} 44. Rd5 {[%emt 0:00:05]} Rh6 {[%emt 0:00:23]} 45. d4 {
[%emt 0:00:23]} Rg7 {[%emt 0:00:12]} 46. Re5 {[%emt 0:00:05]} Qc4 {[%emt 0:00:
04]} 47. Re8+ {[%emt 0:00:06]} Rg8 {[%emt 0:00:07]} 48. Rxg8+ {[%emt 0:00:05]}
Kxg8 {[%emt 0:00:01]} 49. Qa8+ {[%emt 0:00:10]} Kg7 {[%emt 0:00:02]} 50. Qb7+ {
[%emt 0:00:06]} Kf8 {[%emt 0:00:04]} 51. Re1 {[%emt 0:00:17]} Qxd4 {[%emt 0:00:
12]} 52. Qe7+ {[%emt 0:00:04]} Kg8 {[%emt 0:00:01]} 53. Qe8+ {[%emt 0:00:03]}
Kg7 {[%emt 0:00:05]} 54. Re7+ {[%emt 0:00:08]} Kf6 {[%emt 0:00:01]} 55. Qf8+ {
[%emt 0:00:23]} Kg5 {[%emt 0:00:05]} 56. Rg7+ {[%emt 0:00:06]} Rg6 {[%emt 0:00:
14]} 57. Qf4+ {[%emt 0:00:11]} Qxf4 {[%emt 0:00:11]} 58. Rxg6+ {[%emt 0:00:02]}
1-0

[Event "16th EWICC 2015"]
[Site "Kutaisi"]
[Date "2015.06.01"]
[Round "4"]
[White "Jalaghonia, Nino"]
[Black "Tereladze, Sopiko"]
[Result "1/2-1/2"]
[ECO "A98"]
[WhiteElo "1865"]
[BlackElo "2128"]
[Annotator "Robot 11"]
[PlyCount "155"]
[EventDate "2015.??.??"]
[EventCountry "GEO"]
[TimeControl "900+10"]

1. c4 {[%emt 0:00:02]} f5 {[%emt 0:00:02]} 2. Nc3 {[%emt 0:00:02]} Nf6 {[%emt
0:00:01]} 3. g3 {[%emt 0:00:01]} e6 {[%emt 0:00:01]} 4. Bg2 {[%emt 0:00:01]}
Be7 {[%emt 0:00:04]} 5. d4 {[%emt 0:00:02]} O-O {[%emt 0:00:01]} 6. Nf3 {[%emt
0:00:28]} Qe8 {[%emt 0:00:08]} 7. O-O {[%emt 0:00:05]} d6 {[%emt 0:00:25]} 8.
Qc2 {[%emt 0:00:16]} Nbd7 {[%emt 0:00:15]} 9. b4 {[%emt 0:01:18]} Rb8 {[%emt 0:
00:29]} 10. Nb5 {[%emt 0:01:04]} Nb6 {[%emt 0:01:29]} 11. Nxc7 {[%emt 0:00:58]}
Qc6 {[%emt 0:00:06]} 12. Nb5 {[%emt 0:00:24]} Qxc4 {[%emt 0:00:13]} 13. Qxc4 {
[%emt 0:00:05]} Nxc4 {[%emt 0:00:01]} 14. a4 {[%emt 0:01:05]} a6 {[%emt 0:00:
22]} 15. Nc3 {[%emt 0:00:40]} Bd7 {[%emt 0:00:09]} 16. b5 {[%emt 0:00:13]} Rbc8
{[%emt 0:00:51]} 17. bxa6 {[%emt 0:00:44]} bxa6 {[%emt 0:00:01]} 18. Nd1 {
[%emt 0:00:06]} Ne4 {[%emt 0:00:16]} 19. a5 {[%emt 0:00:39]} Bd8 {[%emt 0:00:
23]} 20. Ne3 {[%emt 0:01:06]} Nxa5 {[%emt 0:00:15]} 21. Ba3 {[%emt 0:01:11]}
Bb5 {[%emt 0:00:15]} 22. Rfe1 {[%emt 0:00:44]} Bb6 {[%emt 0:01:17]} 23. Bb4 {
[%emt 0:01:56]} Nc6 {[%emt 0:00:32]} 24. Nc2 {[%emt 0:00:57]} Rfd8 {[%emt 0:00:
23]} 25. e3 {[%emt 0:00:26]} Ne7 {[%emt 0:00:19]} 26. Na3 {[%emt 0:00:19]} Nd5
{[%emt 0:00:10]} 27. Bd2 {[%emt 0:00:41]} Bd3 {[%emt 0:00:32]} 28. Red1 {[%emt
0:00:14]} Be2 {[%emt 0:00:12]} 29. h4 {[%emt 0:00:50]} Bxd1 {[%emt 0:00:12]}
30. Rxd1 {[%emt 0:00:01]} Ndc3 {[%emt 0:00:39]} 31. Ra1 {[%emt 0:00:23]} a5 {
[%emt 0:02:54]} 32. Bf1 {[%emt 0:00:38]} Nxd2 {[%emt 0:00:33]} 33. Nxd2 {[%emt
0:00:02]} d5 {[%emt 0:00:01]} 34. Nf3 {[%emt 0:00:58]} h6 {[%emt 0:00:20]} 35.
Ne5 {[%emt 0:00:07]} Ne4 {[%emt 0:00:45]} 36. Bb5 {[%emt 0:00:17]} Rc7 {[%emt
0:00:23]} 37. Ba4 {[%emt 0:00:39]} Nc3 {[%emt 0:00:20]} 38. Nb5 {[%emt 0:00:19]
} Nxb5 {[%emt 0:00:25]} 39. Bxb5 {[%emt 0:00:01]} Kf8 {[%emt 0:00:16]} 40. Rb1
{[%emt 0:00:14]} Rd6 {[%emt 0:01:32]} 41. Ba4 {[%emt 0:00:51]} Ke7 {[%emt 0:00:
14]} 42. Ng6+ {[%emt 0:00:14]} Kd8 {[%emt 0:00:10]} 43. Ne5 {[%emt 0:00:03]}
Kc8 {[%emt 0:00:08]} 44. f3 {[%emt 0:00:23]} Kb7 {[%emt 0:00:04]} 45. g4 {
[%emt 0:00:07]} fxg4 46. fxg4 Ka7 {[%emt 0:00:06]} 47. g5 {[%emt 0:00:12]} Rb7
{[%emt 0:01:37]} 48. g6 {[%emt 0:00:18]} Bd8 {[%emt 0:00:24]} 49. Rxb7+ Kxb7
50. Nf7 {[%emt 0:00:20]} Kc7 {[%emt 0:00:39]} 51. Nxd6 Kxd6 52. h5 {[%emt 0:00:
06]} Ke7 {[%emt 0:00:01]} 53. Kf2 Kf6 54. Kg3 {[%emt 0:00:26]} Be7 {[%emt 0:00:
09]} 55. Kg4 {[%emt 0:00:22]} Bb4 {[%emt 0:00:18]} 56. Bd1 {[%emt 0:00:07]} Bd2
{[%emt 0:00:07]} 57. Kf4 {[%emt 0:00:02]} Bc1 {[%emt 0:00:06]} 58. Ba4 {[%emt
0:00:10]} Bd2 {[%emt 0:00:08]} 59. Bc2 {[%emt 0:00:07]} Be1 {[%emt 0:00:01]}
60. Ba4 {[%emt 0:00:11]} Bh4 {[%emt 0:00:02]} 61. Bc2 {[%emt 0:00:09]} Bg5+ {
[%emt 0:00:01]} 62. Kf3 {[%emt 0:00:03]} e5 {[%emt 0:00:02]} 63. dxe5+ Kxe5 64.
Ke2 {[%emt 0:00:23]} d4 {[%emt 0:00:14]} 65. exd4+ Kxd4 66. Ba4 {[%emt 0:00:20]
} Kc3 {[%emt 0:00:02]} 67. Kd1 {[%emt 0:00:05]} Kb2 {[%emt 0:00:10]} 68. Bd7 {
[%emt 0:00:10]} Be7 {[%emt 0:00:21]} 69. Bc6 {[%emt 0:00:04]} Bb4 {[%emt 0:00:
02]} 70. Bd7 {[%emt 0:00:14]} Ba3 {[%emt 0:00:06]} 71. Bc6 {[%emt 0:00:10]} Kb3
{[%emt 0:00:01]} 72. Bd5+ {[%emt 0:00:01]} Kc3 {[%emt 0:00:03]} 73. Bc6 {[%emt
0:00:03]} Bd6 {[%emt 0:00:07]} 74. Kc1 {[%emt 0:00:02]} Kb3 {[%emt 0:00:12]}
75. Kb1 {[%emt 0:00:18]} a4 76. Bd5+ Ka3 {[%emt 0:00:03]} 77. Be6 {[%emt 0:00:
04]} Be5 {[%emt 0:00:01]} 78. Bf7 {[%emt 0:00:04]} 1/2-1/2

[Event "16th EWICC 2015"]
[Site "Kutaisi"]
[Date "2015.06.01"]
[Round "4"]
[White "Khomeriki, Ketevan"]
[Black "Melashvili, Nino"]
[Result "0-1"]
[ECO "B20"]
[WhiteElo "1861"]
[BlackElo "2173"]
[Annotator "Robot 11"]
[PlyCount "44"]
[EventDate "2015.??.??"]
[EventCountry "GEO"]
[TimeControl "900+10"]

1. e4 {[%emt 0:00:01]} c5 {[%emt 0:00:03]} 2. d3 {[%emt 0:00:02]} Nc6 {[%emt 0:
00:01]} 3. f4 {[%emt 0:00:02]} d6 {[%emt 0:00:04]} 4. Nf3 {[%emt 0:00:02]} g6 {
[%emt 0:00:02]} 5. g4 Bxg4 {[%emt 0:00:07]} 6. Bg2 {[%emt 0:00:05]} Qd7 {[%emt
0:00:07]} 7. O-O {[%emt 0:00:23]} Bg7 {[%emt 0:00:15]} 8. c3 {[%emt 0:00:02]}
h5 {[%emt 0:00:31]} 9. h4 {[%emt 0:01:00]} Bh3 {[%emt 0:00:22]} 10. f5 {[%emt
0:00:29]} Bxg2 {[%emt 0:00:04]} 11. Kxg2 {[%emt 0:00:03]} gxf5 {[%emt 0:00:05]}
12. Ng5 {[%emt 0:00:24]} f6 {[%emt 0:00:32]} 13. Nh3 {[%emt 0:00:20]} fxe4 {
[%emt 0:00:16]} 14. dxe4 {[%emt 0:00:27]} O-O-O {[%emt 0:01:28]} 15. Nf4 {
[%emt 0:00:13]} Bh6 {[%emt 0:00:13]} 16. Ng6 {[%emt 0:01:51]} Bxc1 {[%emt 0:00:
20]} 17. Qxc1 {[%emt 0:02:19]} Rh6 {[%emt 0:00:03]} 18. Nf4 {[%emt 0:00:18]} f5
{[%emt 0:00:15]} 19. Nd2 {[%emt 0:00:24]} e5 {[%emt 0:00:49]} 20. Nd5 {[%emt 0:
00:34]} f4 {[%emt 0:00:04]} 21. Nc4 {[%emt 0:01:13]} Qg4+ {[%emt 0:01:06] Rf3 
[%clk 0:07:44] Rg6+ [%clk 0:11:12] Qh1 [%clk 0:07:42] Qe6+ [%clk 0:09:18] Qd1 
[%clk 0:05:37] Nge7+ [%clk 0:08:19] Rd3 [%clk 0:05:18] b5+ [%clk 0:06:39]
Nxe7+ [%clk 0:02:45] Qxe7+ [%clk 0:06:25] Na3 [%clk 0:01:22] Qxh4+ [%clk 0:06:
23] Qe1 [%clk 0:00:59] Rdg8+ [%clk 0:06:15] Nxb5 [%clk 0:00:28] Rg3+ [%clk 0:
06:11] Rxg3 [%clk 0:00:31] Rxg3+ [%clk 0:06:19] Kf1 [%clk 0:00:33] Qh1+ [%clk
0:06:02]} 22. Kf2 {[%emt 0:07:53]} Qg2+ 0-1

[Event "16th EWICC 2015"]
[Site "Kutaisi"]
[Date "2015.06.01"]
[Round "4"]
[White "Khomeriki, Nino"]
[Black "Charochkina, Daria"]
[Result "0-1"]
[ECO "A05"]
[WhiteElo "2228"]
[BlackElo "2391"]
[Annotator "Robot 11"]
[PlyCount "76"]
[EventDate "2015.??.??"]
[EventCountry "GEO"]
[TimeControl "900+10"]

1. Nf3 {[%emt 0:00:02]} Nf6 {[%emt 0:00:01]} 2. g3 {[%emt 0:00:00]} g6 {[%emt
0:00:01]} 3. b3 {[%emt 0:00:04]} Bg7 {[%emt 0:00:02]} 4. Bb2 {[%emt 0:00:01]}
O-O {[%emt 0:00:03]} 5. Bg2 {[%emt 0:00:05]} d5 {[%emt 0:00:02]} 6. c4 {[%emt
0:00:26]} c5 {[%emt 0:01:57]} 7. O-O {[%emt 0:00:08]} Nc6 {[%emt 0:01:35]} 8.
e3 {[%emt 0:05:05]} Bf5 {[%emt 0:00:16]} 9. cxd5 {[%emt 0:00:42]} Nb4 {[%emt 0:
00:22]} 10. d4 {[%emt 0:01:51]} Nfxd5 {[%emt 0:01:07]} 11. Ne5 {[%emt 0:02:05]}
cxd4 {[%emt 0:01:54]} 12. Bxd4 {[%emt 0:02:13]} Nc2 {[%emt 0:01:22]} 13. Nxf7 {
[%emt 0:02:26]} Kxf7 {[%emt 0:01:42]} 14. Bxg7 {[%emt 0:00:15]} Kxg7 {[%emt 0:
00:03]} 15. Bxd5 {[%emt 0:00:47]} Nxa1 {[%emt 0:00:17]} 16. e4 {[%emt 0:00:18]}
e6 {[%emt 0:00:02]} 17. exf5 {[%emt 0:00:39]} Qxd5 {[%emt 0:00:06]} 18. Na3 {
[%emt 0:00:35]} Qxd1 {[%emt 0:00:12]} 19. Rxd1 {[%emt 0:00:01]} Nxb3 {[%emt 0:
00:15]} 20. axb3 {[%emt 0:00:11]} exf5 {[%emt 0:00:03]} 21. Nc4 {[%emt 0:00:07]
} Rad8 {[%emt 0:00:08]} 22. Ra1 {[%emt 0:00:06]} a6 {[%emt 0:00:16]} 23. f4 {
[%emt 0:00:22]} Rd3 {[%emt 0:00:04]} 24. Ne5 {[%emt 0:00:17]} Rxb3 {[%emt 0:00:
16]} 25. Rc1 {[%emt 0:00:01]} a5 {[%emt 0:00:16]} 26. Rc7+ {[%emt 0:00:05]} Kg8
{[%emt 0:00:01]} 27. Kg2 {[%emt 0:00:14]} a4 {[%emt 0:00:06]} 28. Kh3 {[%emt 0:
00:10]} a3 {[%emt 0:00:50]} 29. Kh4 {[%emt 0:00:07]} a2 {[%emt 0:00:02]} 30.
Kg5 {[%emt 0:00:12]} a1=Q {[%emt 0:01:03]} 31. Kh6 {[%emt 0:00:03]} Qxe5 {
[%emt 0:00:02]} 32. fxe5 {[%emt 0:00:01]} Re8 {[%emt 0:00:02]} 33. Rg7+ {[%emt
0:00:39]} Kf8 {[%emt 0:00:03]} 34. Rxh7 {[%emt 0:00:08]} Rxe5 {[%emt 0:00:05]}
35. h4 {[%emt 0:00:11]} Rxg3 {[%emt 0:00:25]} 36. h5 {[%emt 0:00:06]} gxh5 {
[%emt 0:00:15]} 37. Rxb7 {[%emt 0:00:09]} Re6+ {[%emt 0:00:14]} 38. Kh7 {[%emt
0:00:03]} Re7+ {[%emt 0:00:03]} 0-1

[Event "16th EWICC 2015"]
[Site "Kutaisi"]
[Date "2015.06.01"]
[Round "4"]
[White "Mikadze, Miranda"]
[Black "Petrenko, Svetlana"]
[Result "0-1"]
[ECO "B22"]
[WhiteElo "2233"]
[BlackElo "2207"]
[Annotator "Robot 11"]
[PlyCount "164"]
[EventDate "2015.??.??"]
[EventCountry "GEO"]
[TimeControl "900+10"]

1. e4 {[%emt 0:00:01]} c5 {[%emt 0:00:01]} 2. c3 {[%emt 0:00:01]} g6 {[%emt 0:
00:03]} 3. d4 {[%emt 0:00:04]} Qc7 {[%emt 0:00:30]} 4. Nf3 {[%emt 0:00:23]} Bg7
{[%emt 0:00:04]} 5. Be2 {[%emt 0:00:31]} b6 {[%emt 0:00:08]} 6. O-O {[%emt 0:
01:09]} Bb7 {[%emt 0:00:02]} 7. e5 {[%emt 0:00:16]} d5 {[%emt 0:01:38]} 8. e6 {
[%emt 0:00:24]} f6 {[%emt 0:02:39]} 9. Na3 {[%emt 0:02:03]} a6 {[%emt 0:00:30]}
10. c4 {[%emt 0:01:00]} dxc4 {[%emt 0:00:38]} 11. dxc5 {[%emt 0:00:05]} b5 {
[%emt 0:00:09]} 12. Be3 {[%emt 0:00:12]} Nh6 {[%emt 0:00:07]} 13. b3 {[%emt 0:
01:19]} Nf5 {[%emt 0:00:30]} 14. Bd2 {[%emt 0:00:00]} Qxc5 {[%emt 0:00:22]} 15.
bxc4 {[%emt 0:00:03]} Qxa3 {[%emt 0:00:16]} 16. cxb5 {[%emt 0:00:50]} O-O {
[%emt 0:00:17]} 17. Qc2 {[%emt 0:00:05]} axb5 {[%emt 0:00:36]} 18. Qc7 {[%emt
0:00:01]} Be4 {[%emt 0:00:49]} 19. Bf4 {[%emt 0:00:21]} Na6 {[%emt 0:00:30]}
20. Qd7 {[%emt 0:00:19]} Nc5 {[%emt 0:01:35]} 21. Qxb5 {[%emt 0:00:06]} Bxf3 {
[%emt 0:01:14]} 22. gxf3 {[%emt 0:00:15]} Nd4 {[%emt 0:00:07]} 23. Qc4 {[%emt
0:00:01]} Nxe2+ {[%emt 0:00:58]} 24. Qxe2 {[%emt 0:00:02]} Ra6 {[%emt 0:00:33]}
25. Rfe1 {[%emt 0:00:07]} Nd3 {[%emt 0:00:10]} 26. Bc1 {[%emt 0:00:10]} Qd6 {
[%emt 0:00:18]} 27. Rd1 {[%emt 0:00:02]} Nxc1 {[%emt 0:00:07]} 28. Raxc1 {
[%emt 0:00:05]} Qxe6 {[%emt 0:00:02]} 29. Qb5 {[%emt 0:00:05]} Rxa2 {[%emt 0:
00:09]} 30. Re1 {[%emt 0:00:01]} Qf7 {[%emt 0:00:18]} 31. Rc7 {[%emt 0:00:02]}
Re8 {[%emt 0:00:05]} 32. Qc5 {[%emt 0:00:11]} Bf8 {[%emt 0:00:03]} 33. Qc6 {
[%emt 0:00:03]} Rd2 {[%emt 0:00:31]} 34. Re6 {[%emt 0:00:02]} g5 {[%emt 0:00:
24]} 35. Kg2 {[%emt 0:00:01]} h5 {[%emt 0:00:18]} 36. h3 {[%emt 0:00:33]} Red8
{[%emt 0:00:22]} 37. Qe4 {[%emt 0:00:43]} R2d7 {[%emt 0:00:03]} 38. Rcc6 {
[%emt 0:00:06]} Rd6 {[%emt 0:00:15]} 39. Qf5 {[%emt 0:00:11]} Rxe6 {[%emt 0:00:
05]} 40. Rxe6 {[%emt 0:00:01]} Rd6 {[%emt 0:00:07]} 41. Re2 {[%emt 0:00:06]} e6
{[%emt 0:00:07]} 42. Qb5 {[%emt 0:00:05]} e5 {[%emt 0:00:10]} 43. Rc2 {[%emt 0:
00:02]} g4 {[%emt 0:00:16]} 44. hxg4 {[%emt 0:00:01]} hxg4 {[%emt 0:00:01]} 45.
fxg4 {[%emt 0:00:05]} Qd5+ {[%emt 0:00:03]} 46. Qxd5+ {[%emt 0:00:02]} Rxd5 {
[%emt 0:00:01]} 47. Rc7 {[%emt 0:00:03]} Rd4 {[%emt 0:00:05]} 48. Kg3 {[%emt 0:
00:01]} Rf4 {[%emt 0:00:10]} 49. f3 {[%emt 0:00:03]} Bg7 {[%emt 0:00:03]} 50.
Re7 {[%emt 0:00:04]} Kh7 {[%emt 0:00:04]} 51. Rb7 {[%emt 0:00:17]} Kg6 {[%emt
0:00:01]} 52. Rd7 {[%emt 0:00:00]} Bf8 {[%emt 0:00:06]} 53. Rc7 {[%emt 0:00:04]
} Bb4 {[%emt 0:00:04]} 54. Rc8 {[%emt 0:00:15]} Be1+ {[%emt 0:00:10]} 55. Kg2 {
[%emt 0:00:01]} Bh4 {[%emt 0:00:12]} 56. Rg8+ {[%emt 0:01:19]} Kf7 {[%emt 0:00:
02]} 57. Rh8 {[%emt 0:00:01]} Bg5 {[%emt 0:00:02]} 58. Rh7+ {[%emt 0:00:01]}
Ke6 {[%emt 0:00:02]} 59. Ra7 {[%emt 0:00:01]} Rc4 {[%emt 0:00:08]} 60. Ra5 {
[%emt 0:00:03]} Rc2+ {[%emt 0:00:06]} 61. Kf1 {[%emt 0:00:01]} Be3 {[%emt 0:00:
13]} 62. Ra3 {[%emt 0:00:02]} Bd4 {[%emt 0:00:09]} 63. Ke1 {[%emt 0:00:05]} Kf7
{[%emt 0:00:12]} 64. Ra8 {[%emt 0:00:12]} Rh2 {[%emt 0:00:20]} 65. Rb8 {[%emt
0:00:04]} Ke6 {[%emt 0:00:13]} 66. Re8+ {[%emt 0:00:08]} Kd6 {[%emt 0:00:25]}
67. Rf8 {[%emt 0:00:08]} Ke7 {[%emt 0:00:06]} 68. Rg8 {[%emt 0:00:03]} Be3 {
[%emt 0:00:07]} 69. Rg7+ {[%emt 0:00:06]} Ke6 {[%emt 0:00:05]} 70. Rb7 {[%emt
0:00:06]} Kd5 {[%emt 0:00:07]} 71. Rb3 {[%emt 0:00:02]} Kd4 {[%emt 0:00:08]}
72. Rb4+ {[%emt 0:00:02]} Kc3 {[%emt 0:00:08]} 73. Ra4 {[%emt 0:00:19]} Bd2+ {
[%emt 0:00:43]} 74. Kf1 {[%emt 0:00:02]} Kd3 {[%emt 0:00:17]} 75. Ra6 {[%emt 0:
00:08]} Bg5 {[%emt 0:00:21]} 76. Ra3+ {[%emt 0:00:01]} Kd4 {[%emt 0:00:04]} 77.
Ra4+ {[%emt 0:00:02]} Ke3 {[%emt 0:00:09]} 78. Ra3+ {[%emt 0:00:09]} Kf4 {
[%emt 0:00:03]} 79. Rb3 {[%emt 0:00:01]} Kg3 {[%emt 0:00:28]} 80. Kg1 {[%emt 0:
00:04]} Rc2 {[%emt 0:00:08]} 81. Kf1 {[%emt 0:00:04]} Rf2+ {[%emt 0:00:44]} 82.
Kg1 {[%emt 0:00:01]} Rxf3 {[%emt 0:00:02]} 0-1

[Event "16th EWICC 2015"]
[Site "Kutaisi"]
[Date "2015.06.01"]
[Round "4"]
[White "Stefanova, Antoaneta"]
[Black "Arakhamia-Grant, Ketevan"]
[Result "1-0"]
[ECO "A05"]
[WhiteElo "2512"]
[BlackElo "2393"]
[Annotator "Robot 11"]
[PlyCount "71"]
[EventDate "2015.??.??"]
[EventCountry "GEO"]
[TimeControl "900+10"]

1. Nf3 {[%emt 0:00:02]} Nf6 {[%emt 0:00:08]} 2. g3 {[%emt 0:00:02]} c5 {[%emt
0:00:37]} 3. Bg2 {[%emt 0:00:03]} Nc6 {[%emt 0:00:45]} 4. O-O {[%emt 0:00:04]}
d5 {[%emt 0:00:49]} 5. d4 {[%emt 0:00:28]} e6 {[%emt 0:03:25]} 6. c4 {[%emt 0:
04:13]} dxc4 {[%emt 0:00:49]} 7. dxc5 {[%emt 0:00:04]} Qxd1 {[%emt 0:02:45]} 8.
Rxd1 {[%emt 0:00:01]} Bxc5 {[%emt 0:00:02]} 9. Nbd2 {[%emt 0:00:02]} c3 {[%emt
0:01:01]} 10. bxc3 {[%emt 0:00:03]} O-O {[%emt 0:00:02]} 11. Nb3 {[%emt 0:00:
02]} Bb6 {[%emt 0:00:08]} 12. c4 {[%emt 0:00:11]} Ne4 {[%emt 0:00:23]} 13. e3 {
[%emt 0:01:03]} a5 {[%emt 0:00:25]} 14. Ba3 {[%emt 0:00:58]} Re8 {[%emt 0:00:
08]} 15. Nfd4 {[%emt 0:01:29]} Nxd4 {[%emt 0:03:18]} 16. exd4 {[%emt 0:00:04]}
Nf6 {[%emt 0:00:05]} 17. Nc5 {[%emt 0:03:34]} Bxc5 {[%emt 0:00:57]} 18. Bxc5 {
[%emt 0:00:16]} Nd7 {[%emt 0:00:21]} 19. Bd6 {[%emt 0:00:11]} Ra6 {[%emt 0:00:
52]} 20. c5 {[%emt 0:00:02]} Nf6 {[%emt 0:00:10]} 21. Rab1 {[%emt 0:01:47]} Nd5
{[%emt 0:00:02]} 22. Re1 {[%emt 0:00:05]} Rd8 {[%emt 0:00:34]} 23. Bxd5 {[%emt
0:00:16]} exd5 {[%emt 0:00:01]} 24. Re7 {[%emt 0:00:01]} a4 {[%emt 0:00:53]}
25. Rbe1 {[%emt 0:00:06]} Be6 {[%emt 0:00:16]} 26. Rxb7 {[%emt 0:00:05]} a3 {
[%emt 0:00:02]} 27. Reb1 {[%emt 0:00:11]} h6 {[%emt 0:00:02]} 28. f3 {[%emt 0:
01:03]} Ra4 {[%emt 0:00:01]} 29. R1b4 {[%emt 0:00:14]} Rda8 {[%emt 0:00:07]}
30. c6 {[%emt 0:00:27]} R4a6 {[%emt 0:00:09]} 31. R4b6 {[%emt 0:00:16]} Rxb6 {
[%emt 0:00:04]} 32. Rxb6 {[%emt 0:00:01]} Ra4 {[%emt 0:00:05]} 33. Bb4 {[%emt
0:01:34]} Kh7 {[%emt 0:00:20]} 34. c7 {[%emt 0:00:29]} Ra7 {[%emt 0:00:20]} 35.
Rxe6 {[%emt 0:00:03]} Rxc7 {[%emt 0:00:02]} 36. Re2 {[%emt 0:00:06]} 1-0

[Event "16th EWICC 2015"]
[Site "Kutaisi"]
[Date "2015.06.01"]
[Round "4"]
[White "Zhukova, Natalia"]
[Black "Vakhania, Alexandra"]
[Result "1-0"]
[ECO "D15"]
[WhiteElo "2456"]
[BlackElo "2130"]
[Annotator "Robot 11"]
[PlyCount "95"]
[EventDate "2015.??.??"]
[EventCountry "GEO"]
[TimeControl "900+10"]

1. c4 {[%emt 0:00:02]} c6 {[%emt 0:00:03]} 2. d4 {[%emt 0:00:04]} d5 {[%emt 0:
00:01]} 3. Nf3 {[%emt 0:00:01]} Nf6 {[%emt 0:00:01]} 4. Nc3 {[%emt 0:00:02]} a6
{[%emt 0:00:01]} 5. g3 {[%emt 0:00:04]} b5 {[%emt 0:00:08]} 6. c5 {[%emt 0:00:
38]} Bf5 {[%emt 0:00:39]} 7. Bg2 {[%emt 0:00:06]} Nbd7 {[%emt 0:00:29]} 8. O-O
{[%emt 0:00:24]} e6 {[%emt 0:00:18]} 9. Nh4 {[%emt 0:00:54]} Be7 {[%emt 0:00:
09]} 10. Nxf5 {[%emt 0:00:10]} exf5 {[%emt 0:00:02]} 11. Qd3 {[%emt 0:00:44]}
g6 {[%emt 0:00:30]} 12. Bh6 {[%emt 0:01:33]} Ng4 {[%emt 0:00:02]} 13. Bf4 {
[%emt 0:00:01]} h5 {[%emt 0:00:02]} 14. h4 {[%emt 0:03:16]} O-O {[%emt 0:00:17]
} 15. Rad1 {[%emt 0:00:01]} Qc8 {[%emt 0:04:59]} 16. b4 {[%emt 0:01:41]} a5 {
[%emt 0:00:01]} 17. a3 {[%emt 0:00:00]} axb4 {[%emt 0:00:02]} 18. axb4 {[%emt
0:00:01]} Ra3 {[%emt 0:00:06]} 19. Nxd5 {[%emt 0:00:18]} Rxd3 {[%emt 0:01:30]}
20. Nxe7+ {[%emt 0:00:01]} Kg7 {[%emt 0:00:02]} 21. Nxc8 {[%emt 0:00:04]} Rxd1
{[%emt 0:00:02]} 22. Rxd1 {[%emt 0:00:03]} Rxc8 {[%emt 0:00:01]} 23. Ra1 {
[%emt 0:00:47]} Nf8 {[%emt 0:01:13]} 24. Ra6 {[%emt 0:01:30]} Ne6 {[%emt 0:00:
16]} 25. e3 {[%emt 0:00:26]} Nd8 {[%emt 0:00:33]} 26. Bd6 {[%emt 0:00:14]} Nb7
{[%emt 0:01:39]} 27. Bf4 {[%emt 0:01:57]} Nd8 {[%emt 0:00:04]} 28. Bg5 {[%emt
0:00:23]} Nf6 {[%emt 0:00:42]} 29. Bxf6+ {[%emt 0:00:03]} Kxf6 {[%emt 0:00:02]}
30. d5 {[%emt 0:00:00]} Ke5 {[%emt 0:00:09]} 31. dxc6 {[%emt 0:00:03]} Ne6 {
[%emt 0:00:01]} 32. Rb6 {[%emt 0:00:46]} Nc7 {[%emt 0:00:06]} 33. Rb7 {[%emt 0:
00:35]} f6 {[%emt 0:01:34]} 34. Bf1 {[%emt 0:00:05]} Kd5 {[%emt 0:00:07]} 35.
Bxb5 {[%emt 0:00:04]} Nxb5 {[%emt 0:00:03]} 36. Rxb5 {[%emt 0:00:02]} Kxc6 {
[%emt 0:00:01]} 37. Rb6+ {[%emt 0:00:01]} Kd5 {[%emt 0:00:02]} 38. Rxf6 {[%emt
0:00:12]} Kc4 {[%emt 0:00:17]} 39. Rb6 {[%emt 0:00:21]} Rg8 {[%emt 0:00:17]}
40. Kg2 {[%emt 0:00:02]} Kd5 {[%emt 0:00:04]} 41. Kf3 {[%emt 0:00:08]} Ke5 {
[%emt 0:00:03]} 42. c6 {[%emt 0:00:12]} Kd6 {[%emt 0:00:08]} 43. b5 {[%emt 0:
00:04]} g5 {[%emt 0:00:18]} 44. hxg5 {[%emt 0:00:03]} Rxg5 {[%emt 0:00:01]} 45.
Rb7 {[%emt 0:00:11]} Rg4 {[%emt 0:00:06]} 46. Rd7+ {[%emt 0:00:11]} Ke6 {[%emt
0:00:07]} 47. Rd4 {[%emt 0:00:13]} Rg8 {[%emt 0:00:15]} 48. c7 {[%emt 0:00:05]
Kd5 Ke4+} 1-0